Workbook

Sheet Data
A1: Problem 6, Exam TPG4230 (resit), V2024, Prof. Milan Stanko | J1: Explanation
J2: This problem will be solved using monte carlo simulation
A3: Deterministic variables | J3: Create a column called iteration nr and populate with a sequence of integers from 1 to 500
A4: field plateau rate, qpf | B4: [Sm3/d] | C4: 20000000 | J4: Create a column called G. In this G use the VBA function x_normal, with the provided mean and standard deviation
A5: well production potential at initial time, qppow | B5: [Sm3/d] | C5: 5700000 | J5: Like this | K5: =x_normal(G14,H14) -> 
A6: Number of producer wells, Nw | B6: [-] | C6: 9 | J6: Create a column called t_ini. In this column use the VBA function x_Triangular, with the provided minimum, maximum, mode
A7: uptime, tuptime | B7: [d/y] | C7: 360 | J7: Like this | K7: =x_triangular(D15,E15,F15) -> 
A8: discount rate, i | B8: [-] | C8: 0.05 | J8: Copy and paste "as value" both columns to avoid dynamic updating
A9: gas price, Pg | B9: [USD/Sm3] | C9: 0.1 | J9: Create a new column called NPV, apply the VBA function "NPV_Snowhite" (remember to freeze all cells except for t_ini and G)
A10: Abandonment time, tend | B10: [y] | C10: 31 | J10: Perform a frequency analysis on the column NPV
K11: Find max and min and deltapNPV = (max-min)/(nbins)
D12: Triangular dist. | G12: Normal dist | K12: create column of bin_array for NPV
A13: Probabilistic variables | C13: Distribution | D13: min | E13: max | F13: mode | G13: mean | H13: stddev | K13: Create a column called Counts, Apply the frequency function to the NPV column and bin_array
A14: Initial gas in place, G | B14: [Sm3] | C14: Normal | G14: 270000000000 | H14: 20000000000 | K14: Create a column called relative frequency. Divide each number of counts by the total number of iterations
A15: time to production startup, tini | B15: [y] | C15: Triangular | D15: 3 | E15: 7 | F15: 5 | K15: Create a column called cummulative frequency, this is equal to the current plus all the previous.
J16: To find the probability to have a negative NPVs, one most interpolate in columns bins_array NPV and cum_frequency, for bins_array NPV = 0, this gives around 20%!
A17: Output
B18: Iteration nr. | C18: G | D18: tini | E18: NPV
B19: [-] | C19: [Sm3] | D19: [-] | E19: [USD]
B20: 1 | C20: 2.660693211e+11 | D20: 5.983250932 | E20: =NPV_Snowhite(C20,$C$6,$C$4,$C$5,$C$9,$C$7,$C$8,D20,$C$10) -> -55631939.19 | G20: Min [USD] | H20: =MIN(E20:E519) -> -773811964.5
B21: 2 | C21: 2.943128147e+11 | D21: 5.199123426 | E21: =NPV_Snowhite(C21,$C$6,$C$4,$C$5,$C$9,$C$7,$C$8,D21,$C$10) -> 329721744.3 | G21: Max [USD] | H21: =MAX(E20:E519) -> 1061190080
B22: 3 | C22: 2.623861257e+11 | D22: 6.035985152 | E22: =NPV_Snowhite(C22,$C$6,$C$4,$C$5,$C$9,$C$7,$C$8,D22,$C$10) -> -91531335.32 | G22: deltaNPV [USD] | H22: =(H21-H20)/20 -> 91750102.2
B23: 4 | C23: 3.032249417e+11 | D23: 5.40239628 | E23: =NPV_Snowhite(C23,$C$6,$C$4,$C$5,$C$9,$C$7,$C$8,D23,$C$10) -> 282055964
B24: 5 | C24: 2.945844169e+11 | D24: 4.006011537 | E24: =NPV_Snowhite(C24,$C$6,$C$4,$C$5,$C$9,$C$7,$C$8,D24,$C$10) -> 767014698.4 | H24: NPV | I24: Counts | J24: Rel frequency | K24: Cum Frequency
B25: 6 | C25: 2.665857961e+11 | D25: 4.647621423 | E25: =NPV_Snowhite(C25,$C$6,$C$4,$C$5,$C$9,$C$7,$C$8,D25,$C$10) -> 390491739.1 | H25: [USD] | I25: [-] | J25: [%] | K25: [%]
B26: 7 | C26: 2.833046122e+11 | D26: 5.582276084 | E26: =NPV_Snowhite(C26,$C$6,$C$4,$C$5,$C$9,$C$7,$C$8,D26,$C$10) -> 154976922.3 | H26: =$H$20 -> -773811964.5 | I26: =FREQUENCY(E20:E519,H26:H46) -> 1 | J26: =I26/$I$47 -> 0.002 | K26: =J26 -> 0.002
B27: 8 | C27: 2.656757415e+11 | D27: 3.822431172 | E27: =NPV_Snowhite(C27,$C$6,$C$4,$C$5,$C$9,$C$7,$C$8,D27,$C$10) -> 666512151.1 | H27: =H26+$H$22 -> -682061862.3 | I27: 0 | J27: =I27/$I$47 -> 0 | K27: =K26+J27 -> 0.002
B28: 9 | C28: 2.70417897e+11 | D28: 4.437431831 | E28: =NPV_Snowhite(C28,$C$6,$C$4,$C$5,$C$9,$C$7,$C$8,D28,$C$10) -> 485963694.5 | H28: =H27+$H$22 -> -590311760.1 | I28: 0 | J28: 0 | K28: =K27+J28 -> 0.002
B29: 10 | C29: 2.471313352e+11 | D29: 4.728215044 | E29: =NPV_Snowhite(C29,$C$6,$C$4,$C$5,$C$9,$C$7,$C$8,D29,$C$10) -> 223612936.3 | H29: -498561657.9 | I29: 1 | J29: 0.002 | K29: 0.004
B30: 11 | C30: 2.896627864e+11 | D30: 3.880229039 | E30: =NPV_Snowhite(C30,$C$6,$C$4,$C$5,$C$9,$C$7,$C$8,D30,$C$10) -> 790691397.3 | H30: -406811555.7 | I30: 0 | J30: 0 | K30: 0.004
B31: 12 | C31: 2.750622873e+11 | D31: 4.56607897 | E31: =NPV_Snowhite(C31,$C$6,$C$4,$C$5,$C$9,$C$7,$C$8,D31,$C$10) -> 468558146.3 | H31: -315061453.5 | I31: 6 | J31: 0.012 | K31: 0.016
B32: 13 | C32: 2.665894435e+11 | D32: 6.017212225 | E32: =NPV_Snowhite(C32,$C$6,$C$4,$C$5,$C$9,$C$7,$C$8,D32,$C$10) -> -64134504.36 | H32: -223311351.3 | I32: 15 | J32: 0.03 | K32: 0.046
B33: 14 | C33: 2.466656286e+11 | D33: 5.560313685 | E33: =NPV_Snowhite(C33,$C$6,$C$4,$C$5,$C$9,$C$7,$C$8,D33,$C$10) -> -40223103.63 | H33: -131561249.1 | I33: 14 | J33: 0.028 | K33: 0.074
B34: 15 | C34: 2.43132235e+11 | D34: 4.632671441 | E34: =NPV_Snowhite(C34,$C$6,$C$4,$C$5,$C$9,$C$7,$C$8,D34,$C$10) -> 219738141.8 | H34: -39811146.88 | I34: 47 | J34: 0.094 | K34: 0.168
B35: 16 | C35: 3.130297164e+11 | D35: 5.060094174 | E35: =NPV_Snowhite(C35,$C$6,$C$4,$C$5,$C$9,$C$7,$C$8,D35,$C$10) -> 431669356.9 | H35: 51938955.32 | I35: 31 | J35: 0.062 | K35: 0.23
B36: 17 | C36: 2.452549654e+11 | D36: 5.338452875 | E36: =NPV_Snowhite(C36,$C$6,$C$4,$C$5,$C$9,$C$7,$C$8,D36,$C$10) -> 17701513.6 | H36: 143689057.5 | I36: 44 | J36: 0.088 | K36: 0.318
B37: 18 | C37: 2.488966904e+11 | D37: 6.017222899 | E37: =NPV_Snowhite(C37,$C$6,$C$4,$C$5,$C$9,$C$7,$C$8,D37,$C$10) -> -165497767.4 | H37: 235439159.7 | I37: 56 | J37: 0.112 | K37: 0.43
B38: 19 | C38: 2.416265756e+11 | D38: 5.586546634 | E38: =NPV_Snowhite(C38,$C$6,$C$4,$C$5,$C$9,$C$7,$C$8,D38,$C$10) -> -86553955.6 | H38: 327189261.9 | I38: 56 | J38: 0.112 | K38: 0.542
B39: 20 | C39: 3.050593754e+11 | D39: 5.281250555 | E39: =NPV_Snowhite(C39,$C$6,$C$4,$C$5,$C$9,$C$7,$C$8,D39,$C$10) -> 331037443.8 | H39: 418939364.1 | I39: 56 | J39: 0.112 | K39: 0.654
B40: 21 | C40: 3.150492484e+11 | D40: 4.672483815 | E40: =NPV_Snowhite(C40,$C$6,$C$4,$C$5,$C$9,$C$7,$C$8,D40,$C$10) -> 583278134.2 | H40: =H39+$H$22 -> 510689466.3 | I40: 54 | J40: 0.108 | K40: 0.762
B41: 22 | C41: 2.732949944e+11 | D41: 6.616679004 | E41: =NPV_Snowhite(C41,$C$6,$C$4,$C$5,$C$9,$C$7,$C$8,D41,$C$10) -> -231240625.8 | H41: 602439568.5 | I41: 36 | J41: 0.072 | K41: 0.834
B42: 23 | C42: 2.55882875e+11 | D42: 5.072370631 | E42: =NPV_Snowhite(C42,$C$6,$C$4,$C$5,$C$9,$C$7,$C$8,D42,$C$10) -> 179571936.4 | H42: 694189670.7 | I42: 32 | J42: 0.064 | K42: 0.898
B43: 24 | C43: 2.937789426e+11 | D43: 5.461699699 | E43: =NPV_Snowhite(C43,$C$6,$C$4,$C$5,$C$9,$C$7,$C$8,D43,$C$10) -> 233998602.6 | H43: 785939772.9 | I43: 20 | J43: 0.04 | K43: 0.938
B44: 25 | C44: 2.642996276e+11 | D44: 4.761635518 | E44: =NPV_Snowhite(C44,$C$6,$C$4,$C$5,$C$9,$C$7,$C$8,D44,$C$10) -> 337657607.5 | H44: 877689875.1 | I44: 21 | J44: 0.042 | K44: 0.98
B45: 26 | C45: 2.629750001e+11 | D45: 4.244729374 | E45: =NPV_Snowhite(C45,$C$6,$C$4,$C$5,$C$9,$C$7,$C$8,D45,$C$10) -> 502779429.8 | H45: 969439977.3 | I45: 5 | J45: 0.01 | K45: 0.99
B46: 27 | C46: 2.732756469e+11 | D46: 4.916687205 | E46: =NPV_Snowhite(C46,$C$6,$C$4,$C$5,$C$9,$C$7,$C$8,D46,$C$10) -> 337834757.7 | H46: 1061190080 | I46: 5 | J46: 0.01 | K46: 1
B47: 28 | C47: 3.063268075e+11 | D47: 4.524803762 | E47: =NPV_Snowhite(C47,$C$6,$C$4,$C$5,$C$9,$C$7,$C$8,D47,$C$10) -> 616187441.7 | I47: =SUM(I26:I46) -> 500
B48: 29 | C48: 2.774260653e+11 | D48: 4.656787713 | E48: =NPV_Snowhite(C48,$C$6,$C$4,$C$5,$C$9,$C$7,$C$8,D48,$C$10) -> 449732249.5
B49: 30 | C49: 2.258779349e+11 | D49: 5.722475584 | E49: =NPV_Snowhite(C49,$C$6,$C$4,$C$5,$C$9,$C$7,$C$8,D49,$C$10) -> -263414732.7
B50: 31 | C50: 2.875222657e+11 | D50: 4.144110801 | E50: =NPV_Snowhite(C50,$C$6,$C$4,$C$5,$C$9,$C$7,$C$8,D50,$C$10) -> 683523612.6
B51: 32 | C51: 2.843761118e+11 | D51: 4.545015855 | E51: =NPV_Snowhite(C51,$C$6,$C$4,$C$5,$C$9,$C$7,$C$8,D51,$C$10) -> 523919250.3
B52: 33 | C52: 2.407988126e+11 | D52: 6.40001022 | E52: =NPV_Snowhite(C52,$C$6,$C$4,$C$5,$C$9,$C$7,$C$8,D52,$C$10) -> -336251728.1
B53: 34 | C53: 2.825016626e+11 | D53: 5.411104752 | E53: =NPV_Snowhite(C53,$C$6,$C$4,$C$5,$C$9,$C$7,$C$8,D53,$C$10) -> 211049992.8
B54: 35 | C54: 2.443571342e+11 | D54: 4.187580106 | E54: =NPV_Snowhite(C54,$C$6,$C$4,$C$5,$C$9,$C$7,$C$8,D54,$C$10) -> 371284442
B55: 36 | C55: 2.403692215e+11 | D55: 4.814453125 | E55: =NPV_Snowhite(C55,$C$6,$C$4,$C$5,$C$9,$C$7,$C$8,D55,$C$10) -> 138872874.1
B56: 37 | C56: 2.850562166e+11 | D56: 5.266604313 | E56: =NPV_Snowhite(C56,$C$6,$C$4,$C$5,$C$9,$C$7,$C$8,D56,$C$10) -> 271764640.1
B57: 38 | C57: 2.965603388e+11 | D57: 4.884331182 | E57: =NPV_Snowhite(C57,$C$6,$C$4,$C$5,$C$9,$C$7,$C$8,D57,$C$10) -> 451306465.3
B58: 39 | C58: 2.330862662e+11 | D58: 4.63031194 | E58: =NPV_Snowhite(C58,$C$6,$C$4,$C$5,$C$9,$C$7,$C$8,D58,$C$10) -> 126367830.2
B59: 40 | C59: 2.583632912e+11 | D59: 4.674161257 | E59: =NPV_Snowhite(C59,$C$6,$C$4,$C$5,$C$9,$C$7,$C$8,D59,$C$10) -> 326812172
B60: 41 | C60: 2.852170106e+11 | D60: 4.519136588 | E60: =NPV_Snowhite(C60,$C$6,$C$4,$C$5,$C$9,$C$7,$C$8,D60,$C$10) -> 537141243.6
B61: 42 | C61: 2.81372565e+11 | D61: 6.393330638 | E61: =NPV_Snowhite(C61,$C$6,$C$4,$C$5,$C$9,$C$7,$C$8,D61,$C$10) -> -128794248.6
B62: 43 | C62: 2.946515464e+11 | D62: 6.106056906 | E62: =NPV_Snowhite(C62,$C$6,$C$4,$C$5,$C$9,$C$7,$C$8,D62,$C$10) -> 8435253.712
B63: 44 | C63: 2.953369018e+11 | D63: 5.294968019 | E63: =NPV_Snowhite(C63,$C$6,$C$4,$C$5,$C$9,$C$7,$C$8,D63,$C$10) -> 298607142
B64: 45 | C64: 2.563746055e+11 | D64: 5.495078848 | E64: =NPV_Snowhite(C64,$C$6,$C$4,$C$5,$C$9,$C$7,$C$8,D64,$C$10) -> 46948075.69
B65: 46 | C65: 3.023591715e+11 | D65: 4.810536472 | E65: =NPV_Snowhite(C65,$C$6,$C$4,$C$5,$C$9,$C$7,$C$8,D65,$C$10) -> 497326944
B66: 47 | C66: 2.543242224e+11 | D66: 3.730739931 | E66: =NPV_Snowhite(C66,$C$6,$C$4,$C$5,$C$9,$C$7,$C$8,D66,$C$10) -> 608451784.7
B67: 48 | C67: 2.686695808e+11 | D67: 5.343915408 | E67: =NPV_Snowhite(C67,$C$6,$C$4,$C$5,$C$9,$C$7,$C$8,D67,$C$10) -> 168637999.9
B68: 49 | C68: 2.577331917e+11 | D68: 5.931667182 | E68: =NPV_Snowhite(C68,$C$6,$C$4,$C$5,$C$9,$C$7,$C$8,D68,$C$10) -> -83926266.14
B69: 50 | C69: 2.719962425e+11 | D69: 4.216319277 | E69: =NPV_Snowhite(C69,$C$6,$C$4,$C$5,$C$9,$C$7,$C$8,D69,$C$10) -> 572221128.6
B70: 51 | C70: 3.02781023e+11 | D70: 4.343631296 | E70: =NPV_Snowhite(C70,$C$6,$C$4,$C$5,$C$9,$C$7,$C$8,D70,$C$10) -> 672878145.1
B71: 52 | C71: 2.662744607e+11 | D71: 4.77759002 | E71: =NPV_Snowhite(C71,$C$6,$C$4,$C$5,$C$9,$C$7,$C$8,D71,$C$10) -> 344691621.2
B72: 53 | C72: 2.761069611e+11 | D72: 3.878078495 | E72: =NPV_Snowhite(C72,$C$6,$C$4,$C$5,$C$9,$C$7,$C$8,D72,$C$10) -> 716606770.3
B73: 54 | C73: 2.96469489e+11 | D73: 4.677638876 | E73: =NPV_Snowhite(C73,$C$6,$C$4,$C$5,$C$9,$C$7,$C$8,D73,$C$10) -> 526548962.7
B74: 55 | C74: 2.71790527e+11 | D74: 4.785559678 | E74: =NPV_Snowhite(C74,$C$6,$C$4,$C$5,$C$9,$C$7,$C$8,D74,$C$10) -> 374546083.9
B75: 56 | C75: 3.098138634e+11 | D75: 4.940234685 | E75: =NPV_Snowhite(C75,$C$6,$C$4,$C$5,$C$9,$C$7,$C$8,D75,$C$10) -> 469450916.2
B76: 57 | C76: 2.787732113e+11 | D76: 5.179507416 | E76: =NPV_Snowhite(C76,$C$6,$C$4,$C$5,$C$9,$C$7,$C$8,D76,$C$10) -> 274929239.5
B77: 58 | C77: 2.627145776e+11 | D77: 5.492446843 | E77: =NPV_Snowhite(C77,$C$6,$C$4,$C$5,$C$9,$C$7,$C$8,D77,$C$10) -> 86399928.61
B78: 59 | C78: 2.44949475e+11 | D78: 6.441828534 | E78: =NPV_Snowhite(C78,$C$6,$C$4,$C$5,$C$9,$C$7,$C$8,D78,$C$10) -> -320484351.6
B79: 60 | C79: 2.645666565e+11 | D79: 4.58569304 | E79: =NPV_Snowhite(C79,$C$6,$C$4,$C$5,$C$9,$C$7,$C$8,D79,$C$10) -> 398464885.1
B80: 61 | C80: 2.676110948e+11 | D80: 6.282982302 | E80: =NPV_Snowhite(C80,$C$6,$C$4,$C$5,$C$9,$C$7,$C$8,D80,$C$10) -> -145800153.9
B81: 62 | C81: 2.531999094e+11 | D81: 4.132707473 | E81: =NPV_Snowhite(C81,$C$6,$C$4,$C$5,$C$9,$C$7,$C$8,D81,$C$10) -> 465692969.5
B82: 63 | C82: 2.628846302e+11 | D82: 3.738238944 | E82: =NPV_Snowhite(C82,$C$6,$C$4,$C$5,$C$9,$C$7,$C$8,D82,$C$10) -> 674857654.9
B83: 64 | C83: 3.032933516e+11 | D83: 5.611761018 | E83: =NPV_Snowhite(C83,$C$6,$C$4,$C$5,$C$9,$C$7,$C$8,D83,$C$10) -> 205956743.4
B84: 65 | C84: 2.951430713e+11 | D84: 3.975883309 | E84: =NPV_Snowhite(C84,$C$6,$C$4,$C$5,$C$9,$C$7,$C$8,D84,$C$10) -> 780687808.7
B85: 66 | C85: 2.817527235e+11 | D85: 4.968720209 | E85: =NPV_Snowhite(C85,$C$6,$C$4,$C$5,$C$9,$C$7,$C$8,D85,$C$10) -> 361924709.8
B86: 67 | C86: 2.841184514e+11 | D86: 4.825856946 | E86: =NPV_Snowhite(C86,$C$6,$C$4,$C$5,$C$9,$C$7,$C$8,D86,$C$10) -> 422943230.7
B87: 68 | C87: 2.453464799e+11 | D87: 6.274304323 | E87: =NPV_Snowhite(C87,$C$6,$C$4,$C$5,$C$9,$C$7,$C$8,D87,$C$10) -> -267443437.2
B88: 69 | C88: 2.526366202e+11 | D88: 5.756160275 | E88: =NPV_Snowhite(C88,$C$6,$C$4,$C$5,$C$9,$C$7,$C$8,D88,$C$10) -> -59881095.41
B89: 70 | C89: 2.767869791e+11 | D89: 5.357986457 | E89: =NPV_Snowhite(C89,$C$6,$C$4,$C$5,$C$9,$C$7,$C$8,D89,$C$10) -> 204431890.7
B90: 71 | C90: 2.769013177e+11 | D90: 6.697262475 | E90: =NPV_Snowhite(C90,$C$6,$C$4,$C$5,$C$9,$C$7,$C$8,D90,$C$10) -> -245023432.4
B91: 72 | C91: 2.85163021e+11 | D91: 5.141128095 | E91: =NPV_Snowhite(C91,$C$6,$C$4,$C$5,$C$9,$C$7,$C$8,D91,$C$10) -> 316245755.8
B92: 73 | C92: 2.983221601e+11 | D92: 4.323484864 | E92: =NPV_Snowhite(C92,$C$6,$C$4,$C$5,$C$9,$C$7,$C$8,D92,$C$10) -> 664232868
B93: 74 | C93: 2.618264788e+11 | D93: 4.169471616 | E93: =NPV_Snowhite(C93,$C$6,$C$4,$C$5,$C$9,$C$7,$C$8,D93,$C$10) -> 520027229.9
B94: 75 | C94: 3.309283016e+11 | D94: 4.359909303 | E94: =NPV_Snowhite(C94,$C$6,$C$4,$C$5,$C$9,$C$7,$C$8,D94,$C$10) -> 735482880.9
B95: 76 | C95: 2.620179917e+11 | D95: 6.008156423 | E95: =NPV_Snowhite(C95,$C$6,$C$4,$C$5,$C$9,$C$7,$C$8,D95,$C$10) -> -84531046.08
B96: 77 | C96: 2.683189635e+11 | D96: 6.786657411 | E96: =NPV_Snowhite(C96,$C$6,$C$4,$C$5,$C$9,$C$7,$C$8,D96,$C$10) -> -305569906.8
B97: 78 | C97: 2.530625601e+11 | D97: 5.088071931 | E97: =NPV_Snowhite(C97,$C$6,$C$4,$C$5,$C$9,$C$7,$C$8,D97,$C$10) -> 154675963
B98: 79 | C98: 2.394402008e+11 | D98: 5.063958871 | E98: =NPV_Snowhite(C98,$C$6,$C$4,$C$5,$C$9,$C$7,$C$8,D98,$C$10) -> 54200832.7
B99: 80 | C99: 2.740786114e+11 | D99: 3.854581469 | E99: =NPV_Snowhite(C99,$C$6,$C$4,$C$5,$C$9,$C$7,$C$8,D99,$C$10) -> 712269990.8
B100: 81 | C100: 2.642563979e+11 | D100: 4.59640327 | E100: =NPV_Snowhite(C100,$C$6,$C$4,$C$5,$C$9,$C$7,$C$8,D100,$C$10) -> 392829395.8
B101: 82 | C101: 2.991620115e+11 | D101: 5.886823264 | E101: =NPV_Snowhite(C101,$C$6,$C$4,$C$5,$C$9,$C$7,$C$8,D101,$C$10) -> 97151131.78
B102: 83 | C102: 2.542508732e+11 | D102: 5.959919217 | E102: =NPV_Snowhite(C102,$C$6,$C$4,$C$5,$C$9,$C$7,$C$8,D102,$C$10) -> -113620338.1
B103: 84 | C103: 2.771272035e+11 | D103: 4.417804635 | E103: =NPV_Snowhite(C103,$C$6,$C$4,$C$5,$C$9,$C$7,$C$8,D103,$C$10) -> 531788557.9
B104: 85 | C104: 2.503503294e+11 | D104: 4.630502335 | E104: =NPV_Snowhite(C104,$C$6,$C$4,$C$5,$C$9,$C$7,$C$8,D104,$C$10) -> 280814871.5
B105: 86 | C105: 2.62648322e+11 | D105: 4.470677835 | E105: =NPV_Snowhite(C105,$C$6,$C$4,$C$5,$C$9,$C$7,$C$8,D105,$C$10) -> 424317207.1
B106: 87 | C106: 2.697851251e+11 | D106: 6.197494354 | E106: =NPV_Snowhite(C106,$C$6,$C$4,$C$5,$C$9,$C$7,$C$8,D106,$C$10) -> -108174492.2
B107: 88 | C107: 2.683737497e+11 | D107: 4.26570374 | E107: =NPV_Snowhite(C107,$C$6,$C$4,$C$5,$C$9,$C$7,$C$8,D107,$C$10) -> 532165869
B108: 89 | C108: 2.705349397e+11 | D108: 5.038410067 | E108: =NPV_Snowhite(C108,$C$6,$C$4,$C$5,$C$9,$C$7,$C$8,D108,$C$10) -> 281488772.6
B109: 90 | C109: 2.428612526e+11 | D109: 5.825618728 | E109: =NPV_Snowhite(C109,$C$6,$C$4,$C$5,$C$9,$C$7,$C$8,D109,$C$10) -> -149478645.3
B110: 91 | C110: 2.666587991e+11 | D110: 5.133539828 | E110: =NPV_Snowhite(C110,$C$6,$C$4,$C$5,$C$9,$C$7,$C$8,D110,$C$10) -> 227664379.7
B111: 92 | C111: 2.844103578e+11 | D111: 5.787592052 | E111: =NPV_Snowhite(C111,$C$6,$C$4,$C$5,$C$9,$C$7,$C$8,D111,$C$10) -> 88174465.22
B112: 93 | C112: 3.026361861e+11 | D112: 5.483455347 | E112: =NPV_Snowhite(C112,$C$6,$C$4,$C$5,$C$9,$C$7,$C$8,D112,$C$10) -> 251035508.4
B113: 94 | C113: 2.326648791e+11 | D113: 4.27345304 | E113: =NPV_Snowhite(C113,$C$6,$C$4,$C$5,$C$9,$C$7,$C$8,D113,$C$10) -> 230106227
B114: 95 | C114: 2.552176185e+11 | D114: 6.038777463 | E114: =NPV_Snowhite(C114,$C$6,$C$4,$C$5,$C$9,$C$7,$C$8,D114,$C$10) -> -132546221.5
B115: 96 | C115: 2.81659874e+11 | D115: 5.116200812 | E115: =NPV_Snowhite(C115,$C$6,$C$4,$C$5,$C$9,$C$7,$C$8,D115,$C$10) -> 309979176.8
B116: 97 | C116: 2.660163699e+11 | D116: 5.121139812 | E116: =NPV_Snowhite(C116,$C$6,$C$4,$C$5,$C$9,$C$7,$C$8,D116,$C$10) -> 228068849.6
B117: 98 | C117: 2.760581429e+11 | D117: 5.341684298 | E117: =NPV_Snowhite(C117,$C$6,$C$4,$C$5,$C$9,$C$7,$C$8,D117,$C$10) -> 206596296.7
B118: 99 | C118: 2.607785985e+11 | D118: 4.296895774 | E118: =NPV_Snowhite(C118,$C$6,$C$4,$C$5,$C$9,$C$7,$C$8,D118,$C$10) -> 469522844.4
B119: 100 | C119: 2.6175342e+11 | D119: 4.849918199 | E119: =NPV_Snowhite(C119,$C$6,$C$4,$C$5,$C$9,$C$7,$C$8,D119,$C$10) -> 291805430.8
B120: 101 | C120: 2.840435071e+11 | D120: 5.39369539 | E120: =NPV_Snowhite(C120,$C$6,$C$4,$C$5,$C$9,$C$7,$C$8,D120,$C$10) -> 223320857.9
B121: 102 | C121: 2.661538544e+11 | D121: 3.315907026 | E121: =NPV_Snowhite(C121,$C$6,$C$4,$C$5,$C$9,$C$7,$C$8,D121,$C$10) -> 846690059.6
B122: 103 | C122: 2.788599601e+11 | D122: 4.898999041 | E122: =NPV_Snowhite(C122,$C$6,$C$4,$C$5,$C$9,$C$7,$C$8,D122,$C$10) -> 372581973
B123: 104 | C123: 2.731692386e+11 | D123: 5.211518095 | E123: =NPV_Snowhite(C123,$C$6,$C$4,$C$5,$C$9,$C$7,$C$8,D123,$C$10) -> 236748638.2
B124: 105 | C124: 2.80933213e+11 | D124: 5.074448172 | E124: =NPV_Snowhite(C124,$C$6,$C$4,$C$5,$C$9,$C$7,$C$8,D124,$C$10) -> 321266353.8
B125: 106 | C125: 2.616032535e+11 | D125: 6.043880975 | E125: =NPV_Snowhite(C125,$C$6,$C$4,$C$5,$C$9,$C$7,$C$8,D125,$C$10) -> -98208478.7
B126: 107 | C126: 3.052464045e+11 | D126: 5.11910678 | E126: =NPV_Snowhite(C126,$C$6,$C$4,$C$5,$C$9,$C$7,$C$8,D126,$C$10) -> 391320782.8
B127: 108 | C127: 2.352301143e+11 | D127: 6.288622982 | E127: =NPV_Snowhite(C127,$C$6,$C$4,$C$5,$C$9,$C$7,$C$8,D127,$C$10) -> -344893645.3
B128: 109 | C128: 2.746032099e+11 | D128: 5.588742504 | E128: =NPV_Snowhite(C128,$C$6,$C$4,$C$5,$C$9,$C$7,$C$8,D128,$C$10) -> 115994389.4
B129: 110 | C129: 2.850289416e+11 | D129: 4.70938444 | E129: =NPV_Snowhite(C129,$C$6,$C$4,$C$5,$C$9,$C$7,$C$8,D129,$C$10) -> 468383016.3
B130: 111 | C130: 2.461190276e+11 | D130: 4.373500527 | E130: =NPV_Snowhite(C130,$C$6,$C$4,$C$5,$C$9,$C$7,$C$8,D130,$C$10) -> 327757118.3
B131: 112 | C131: 2.634347662e+11 | D131: 4.928288621 | E131: =NPV_Snowhite(C131,$C$6,$C$4,$C$5,$C$9,$C$7,$C$8,D131,$C$10) -> 276584568.2
B132: 113 | C132: 2.401382468e+11 | D132: 4.832909607 | E132: =NPV_Snowhite(C132,$C$6,$C$4,$C$5,$C$9,$C$7,$C$8,D132,$C$10) -> 131134777.1
B133: 114 | C133: 2.862474578e+11 | D133: 4.07048334 | E133: =NPV_Snowhite(C133,$C$6,$C$4,$C$5,$C$9,$C$7,$C$8,D133,$C$10) -> 704001992.9
B134: 115 | C134: 2.536801286e+11 | D134: 3.592099757 | E134: =NPV_Snowhite(C134,$C$6,$C$4,$C$5,$C$9,$C$7,$C$8,D134,$C$10) -> 649307569.9
B135: 116 | C135: 2.627529199e+11 | D135: 5.967120677 | E135: =NPV_Snowhite(C135,$C$6,$C$4,$C$5,$C$9,$C$7,$C$8,D135,$C$10) -> -67418538.73
B136: 117 | C136: 2.635692781e+11 | D136: 4.818627621 | E136: =NPV_Snowhite(C136,$C$6,$C$4,$C$5,$C$9,$C$7,$C$8,D136,$C$10) -> 313948387.3
B137: 118 | C137: 2.696381711e+11 | D137: 4.665269584 | E137: =NPV_Snowhite(C137,$C$6,$C$4,$C$5,$C$9,$C$7,$C$8,D137,$C$10) -> 403167183.1
B138: 119 | C138: 2.76987226e+11 | D138: 4.690028945 | E138: =NPV_Snowhite(C138,$C$6,$C$4,$C$5,$C$9,$C$7,$C$8,D138,$C$10) -> 435836519.9
B139: 120 | C139: 2.8795234e+11 | D139: 5.866578575 | E139: =NPV_Snowhite(C139,$C$6,$C$4,$C$5,$C$9,$C$7,$C$8,D139,$C$10) -> 72894691.77
B140: 121 | C140: 2.770018636e+11 | D140: 5.256287152 | E140: =NPV_Snowhite(C140,$C$6,$C$4,$C$5,$C$9,$C$7,$C$8,D140,$C$10) -> 240244948
B141: 122 | C141: 2.672273356e+11 | D141: 3.86539914 | E141: =NPV_Snowhite(C141,$C$6,$C$4,$C$5,$C$9,$C$7,$C$8,D141,$C$10) -> 662677996
B142: 123 | C142: 2.635413736e+11 | D142: 5.587600928 | E142: =NPV_Snowhite(C142,$C$6,$C$4,$C$5,$C$9,$C$7,$C$8,D142,$C$10) -> 60036565.14
B143: 124 | C143: 2.649218984e+11 | D143: 5.195831902 | E143: =NPV_Snowhite(C143,$C$6,$C$4,$C$5,$C$9,$C$7,$C$8,D143,$C$10) -> 196835447.6
B144: 125 | C144: 2.917493742e+11 | D144: 6.008270129 | E144: =NPV_Snowhite(C144,$C$6,$C$4,$C$5,$C$9,$C$7,$C$8,D144,$C$10) -> 34977967.38
B145: 126 | C145: 2.830714298e+11 | D145: 4.679003057 | E145: =NPV_Snowhite(C145,$C$6,$C$4,$C$5,$C$9,$C$7,$C$8,D145,$C$10) -> 470094674.3
B146: 127 | C146: 2.580043256e+11 | D146: 5.599311637 | E146: =NPV_Snowhite(C146,$C$6,$C$4,$C$5,$C$9,$C$7,$C$8,D146,$C$10) -> 23771588.41
B147: 128 | C147: 2.849247694e+11 | D147: 4.764678296 | E147: =NPV_Snowhite(C147,$C$6,$C$4,$C$5,$C$9,$C$7,$C$8,D147,$C$10) -> 448257216
B148: 129 | C148: 2.576433737e+11 | D148: 4.142760694 | E148: =NPV_Snowhite(C148,$C$6,$C$4,$C$5,$C$9,$C$7,$C$8,D148,$C$10) -> 497715504.8
B149: 130 | C149: 2.799066853e+11 | D149: 6.1020541 | E149: =NPV_Snowhite(C149,$C$6,$C$4,$C$5,$C$9,$C$7,$C$8,D149,$C$10) -> -35543202.98
B150: 131 | C150: 2.697628412e+11 | D150: 5.034038884 | E150: =NPV_Snowhite(C150,$C$6,$C$4,$C$5,$C$9,$C$7,$C$8,D150,$C$10) -> 278688925.1
B151: 132 | C151: 2.764120052e+11 | D151: 4.239700803 | E151: =NPV_Snowhite(C151,$C$6,$C$4,$C$5,$C$9,$C$7,$C$8,D151,$C$10) -> 590400474.6
B152: 133 | C152: 2.751062727e+11 | D152: 3.745831029 | E152: =NPV_Snowhite(C152,$C$6,$C$4,$C$5,$C$9,$C$7,$C$8,D152,$C$10) -> 757427008.4
B153: 134 | C153: 2.618341963e+11 | D153: 3.84826048 | E153: =NPV_Snowhite(C153,$C$6,$C$4,$C$5,$C$9,$C$7,$C$8,D153,$C$10) -> 629200439.7
B154: 135 | C154: 3.180018011e+11 | D154: 5.169329077 | E154: =NPV_Snowhite(C154,$C$6,$C$4,$C$5,$C$9,$C$7,$C$8,D154,$C$10) -> 399806830.4
B155: 136 | C155: 3.047034758e+11 | D155: 3.988966874 | E155: =NPV_Snowhite(C155,$C$6,$C$4,$C$5,$C$9,$C$7,$C$8,D155,$C$10) -> 813904915.4
B156: 137 | C156: 2.796130155e+11 | D156: 4.396145098 | E156: =NPV_Snowhite(C156,$C$6,$C$4,$C$5,$C$9,$C$7,$C$8,D156,$C$10) -> 552872246.2
B157: 138 | C157: 2.5713914e+11 | D157: 5.967580822 | E157: =NPV_Snowhite(C157,$C$6,$C$4,$C$5,$C$9,$C$7,$C$8,D157,$C$10) -> -98775147.68
B158: 139 | C158: 2.722501593e+11 | D158: 5.092988588 | E158: =NPV_Snowhite(C158,$C$6,$C$4,$C$5,$C$9,$C$7,$C$8,D158,$C$10) -> 272235281.4
B159: 140 | C159: 2.786586618e+11 | D159: 4.505080837 | E159: =NPV_Snowhite(C159,$C$6,$C$4,$C$5,$C$9,$C$7,$C$8,D159,$C$10) -> 509385228.6
B160: 141 | C160: 2.647236777e+11 | D160: 4.959137718 | E160: =NPV_Snowhite(C160,$C$6,$C$4,$C$5,$C$9,$C$7,$C$8,D160,$C$10) -> 274323478.6
B161: 142 | C161: 2.794805804e+11 | D161: 6.39788685 | E161: =NPV_Snowhite(C161,$C$6,$C$4,$C$5,$C$9,$C$7,$C$8,D161,$C$10) -> -136651167.1
B162: 143 | C162: 2.905294709e+11 | D162: 4.960141206 | E162: =NPV_Snowhite(C162,$C$6,$C$4,$C$5,$C$9,$C$7,$C$8,D162,$C$10) -> 401898701.2
B163: 144 | C163: 2.812768503e+11 | D163: 5.654729063 | E163: =NPV_Snowhite(C163,$C$6,$C$4,$C$5,$C$9,$C$7,$C$8,D163,$C$10) -> 122074513
B164: 145 | C164: 2.70283939e+11 | D164: 4.211449103 | E164: =NPV_Snowhite(C164,$C$6,$C$4,$C$5,$C$9,$C$7,$C$8,D164,$C$10) -> 563166312.4
B165: 146 | C165: 2.662591054e+11 | D165: 4.787738293 | E165: =NPV_Snowhite(C165,$C$6,$C$4,$C$5,$C$9,$C$7,$C$8,D165,$C$10) -> 341180537.4
B166: 147 | C166: 2.772673236e+11 | D166: 5.071653639 | E166: =NPV_Snowhite(C166,$C$6,$C$4,$C$5,$C$9,$C$7,$C$8,D166,$C$10) -> 305001502.2
B167: 148 | C167: 2.433950363e+11 | D167: 6.124409194 | E167: =NPV_Snowhite(C167,$C$6,$C$4,$C$5,$C$9,$C$7,$C$8,D167,$C$10) -> -235721851.2
B168: 149 | C168: 2.426175676e+11 | D168: 5.654743064 | E168: =NPV_Snowhite(C168,$C$6,$C$4,$C$5,$C$9,$C$7,$C$8,D168,$C$10) -> -99538818.26
B169: 150 | C169: 2.779628816e+11 | D169: 4.636425347 | E169: =NPV_Snowhite(C169,$C$6,$C$4,$C$5,$C$9,$C$7,$C$8,D169,$C$10) -> 459658193.7
B170: 151 | C170: 2.670156706e+11 | D170: 5.024468732 | E170: =NPV_Snowhite(C170,$C$6,$C$4,$C$5,$C$9,$C$7,$C$8,D170,$C$10) -> 266215372.3
B171: 152 | C171: 2.694661424e+11 | D171: 5.887017755 | E171: =NPV_Snowhite(C171,$C$6,$C$4,$C$5,$C$9,$C$7,$C$8,D171,$C$10) -> -7564597.038
B172: 153 | C172: 2.8694579e+11 | D172: 3.830505692 | E172: =NPV_Snowhite(C172,$C$6,$C$4,$C$5,$C$9,$C$7,$C$8,D172,$C$10) -> 795225407.5
B173: 154 | C173: 2.995221712e+11 | D173: 4.740648351 | E173: =NPV_Snowhite(C173,$C$6,$C$4,$C$5,$C$9,$C$7,$C$8,D173,$C$10) -> 514045305.2
B174: 155 | C174: 2.609822436e+11 | D174: 6.69001408 | E174: =NPV_Snowhite(C174,$C$6,$C$4,$C$5,$C$9,$C$7,$C$8,D174,$C$10) -> -306702042.4
B175: 156 | C175: 2.72065472e+11 | D175: 3.364749689 | E175: =NPV_Snowhite(C175,$C$6,$C$4,$C$5,$C$9,$C$7,$C$8,D175,$C$10) -> 872979430.1
B176: 157 | C176: 3.11865151e+11 | D176: 4.639795875 | E176: =NPV_Snowhite(C176,$C$6,$C$4,$C$5,$C$9,$C$7,$C$8,D176,$C$10) -> 588059076.9
B177: 158 | C177: 2.544924232e+11 | D177: 5.365006293 | E177: =NPV_Snowhite(C177,$C$6,$C$4,$C$5,$C$9,$C$7,$C$8,D177,$C$10) -> 76144004.65
B178: 159 | C178: 2.834092651e+11 | D178: 4.372317906 | E178: =NPV_Snowhite(C178,$C$6,$C$4,$C$5,$C$9,$C$7,$C$8,D178,$C$10) -> 580908183.6
B179: 160 | C179: 2.626045824e+11 | D179: 6.089207687 | E179: =NPV_Snowhite(C179,$C$6,$C$4,$C$5,$C$9,$C$7,$C$8,D179,$C$10) -> -107500844.2
B180: 161 | C180: 2.405735911e+11 | D180: 5.482990543 | E180: =NPV_Snowhite(C180,$C$6,$C$4,$C$5,$C$9,$C$7,$C$8,D180,$C$10) -> -63593135.46
B181: 162 | C181: 2.895932257e+11 | D181: 5.311117809 | E181: =NPV_Snowhite(C181,$C$6,$C$4,$C$5,$C$9,$C$7,$C$8,D181,$C$10) -> 273370058.3
B182: 163 | C182: 2.615158762e+11 | D182: 5.801895311 | E182: =NPV_Snowhite(C182,$C$6,$C$4,$C$5,$C$9,$C$7,$C$8,D182,$C$10) -> -20844347.04
B183: 164 | C183: 2.775910177e+11 | D183: 6.849042894 | E183: =NPV_Snowhite(C183,$C$6,$C$4,$C$5,$C$9,$C$7,$C$8,D183,$C$10) -> -292903122
B184: 165 | C184: 2.897476283e+11 | D184: 4.071192915 | E184: =NPV_Snowhite(C184,$C$6,$C$4,$C$5,$C$9,$C$7,$C$8,D184,$C$10) -> 720848147
B185: 166 | C185: 2.992407453e+11 | D185: 5.282450592 | E185: =NPV_Snowhite(C185,$C$6,$C$4,$C$5,$C$9,$C$7,$C$8,D185,$C$10) -> 314978394.1
B186: 167 | C186: 2.506786435e+11 | D186: 3.97994215 | E186: =NPV_Snowhite(C186,$C$6,$C$4,$C$5,$C$9,$C$7,$C$8,D186,$C$10) -> 494627509.3
B187: 168 | C187: 2.733639866e+11 | D187: 5.058164955 | E187: =NPV_Snowhite(C187,$C$6,$C$4,$C$5,$C$9,$C$7,$C$8,D187,$C$10) -> 289946858.6
B188: 169 | C188: 2.722933496e+11 | D188: 4.693238427 | E188: =NPV_Snowhite(C188,$C$6,$C$4,$C$5,$C$9,$C$7,$C$8,D188,$C$10) -> 409050498.4
B189: 170 | C189: 2.739938932e+11 | D189: 6.267117332 | E189: =NPV_Snowhite(C189,$C$6,$C$4,$C$5,$C$9,$C$7,$C$8,D189,$C$10) -> -113396516.8
B190: 171 | C190: 2.551870358e+11 | D190: 5.161362316 | E190: =NPV_Snowhite(C190,$C$6,$C$4,$C$5,$C$9,$C$7,$C$8,D190,$C$10) -> 146094339.1
B191: 172 | C191: 3.020207761e+11 | D191: 3.316928762 | E191: =NPV_Snowhite(C191,$C$6,$C$4,$C$5,$C$9,$C$7,$C$8,D191,$C$10) -> 1061190080
B192: 173 | C192: 2.925467786e+11 | D192: 5.270981822 | E192: =NPV_Snowhite(C192,$C$6,$C$4,$C$5,$C$9,$C$7,$C$8,D192,$C$10) -> 298010952.6
B193: 174 | C193: 2.582192454e+11 | D193: 4.846014927 | E193: =NPV_Snowhite(C193,$C$6,$C$4,$C$5,$C$9,$C$7,$C$8,D193,$C$10) -> 269344335.5
B194: 175 | C194: 2.820396001e+11 | D194: 6.001218346 | E194: =NPV_Snowhite(C194,$C$6,$C$4,$C$5,$C$9,$C$7,$C$8,D194,$C$10) -> 6411980.634
B195: 176 | C195: 2.639451669e+11 | D195: 4.64851372 | E195: =NPV_Snowhite(C195,$C$6,$C$4,$C$5,$C$9,$C$7,$C$8,D195,$C$10) -> 373286098.7
B196: 177 | C196: 2.613149293e+11 | D196: 5.648496596 | E196: =NPV_Snowhite(C196,$C$6,$C$4,$C$5,$C$9,$C$7,$C$8,D196,$C$10) -> 27592182.43
B197: 178 | C197: 2.496481088e+11 | D197: 4.393273564 | E197: =NPV_Snowhite(C197,$C$6,$C$4,$C$5,$C$9,$C$7,$C$8,D197,$C$10) -> 351464610.6
B198: 179 | C198: 2.64228775e+11 | D198: 4.398952453 | E198: =NPV_Snowhite(C198,$C$6,$C$4,$C$5,$C$9,$C$7,$C$8,D198,$C$10) -> 459250204.8
B199: 180 | C199: 2.733206827e+11 | D199: 4.031723607 | E199: =NPV_Snowhite(C199,$C$6,$C$4,$C$5,$C$9,$C$7,$C$8,D199,$C$10) -> 645018189.7
B200: 181 | C200: 2.695474862e+11 | D200: 4.845217105 | E200: =NPV_Snowhite(C200,$C$6,$C$4,$C$5,$C$9,$C$7,$C$8,D200,$C$10) -> 341398957.6
... 319 more rows
